bitfinex/quotes_BTCUSD_20250615
["timestamp","ask_amount","ask_price","bid_price","bid_amount"]
[1749988986109,0.7296028,105140.0,105130.0,0.03434254]
[1749988986332,0.72960281,105140.0,105130.0,0.03434254]
[1749988986544,0.73628928,105140.0,105130.0,0.03434254]
[1749988986764,0.72960282,105140.0,105130.0,0.03434254]
[1749988987184,0.73628935,105140.0,105130.0,0.03434254]
[1749988987405,0.72737402,105140.0,105130.0,0.03434254]
[1749988987614,0.73628935,105140.0,105130.0,0.03434254]
[1749988988021,0.72960285,105140.0,105130.0,0.03434254]
[1749988988271,0.73628934,105140.0,105130.0,0.03434254]
[1749988988480,0.73628937,105140.0,105130.0,0.03434254]
[1749988988695,0.72737403,105140.0,105130.0,0.03434254]
[1749988988903,0.73628939,105140.0,105130.0,0.03434254]
[1749988989112,0.72737403,105140.0,105130.0,0.03434254]
[1749988989323,0.73628939,105140.0,105130.0,0.03434254]
[1749988989533,0.72068753,105140.0,105130.0,0.03434254]
[1749988989790,0.72737405,105140.0,105130.0,0.03434254]
[1749988989996,0.72737403,105140.0,105130.0,0.03434254]
[1749988990201,0.73628936,105140.0,105130.0,0.03434254]
[1749988990622,0.73628943,105140.0,105130.0,0.03434254]
[1749988990829,0.72737407,105140.0,105130.0,0.03434254]
[1749988991038,0.73628878,105140.0,105130.0,0.03434254]
[1749988991242,0.72068753,105140.0,105130.0,0.03434254]
[1749988991470,0.72960245,105140.0,105130.0,0.03434254]
[1749988991676,0.73628858,105140.0,105130.0,0.03434254]
[1749988991885,0.72960251,105140.0,105130.0,0.03434254]
[1749988992331,0.72737371,105140.0,105130.0,0.03434254]
[1749988992553,0.72960234,105140.0,105130.0,0.03434254]
[1749988992760,0.73628845,105140.0,105130.0,0.03434254]
[1749988992967,0.72737364,105140.0,105130.0,0.03434254]
[1749988993184,0.73628843,105140.0,105130.0,0.03434254]
[1749988993798,0.73628844,105140.0,105130.0,0.03434254]
[1749988994002,0.72737372,105140.0,105130.0,0.03434254]
[1749988994210,0.73628865,105140.0,105130.0,0.03434254]
[1749988994549,0.72068753,105140.0,105130.0,0.03434254]
[1749988994999,0.72960234,105140.0,105130.0,0.03434254]
[1749988995226,0.73628845,105140.0,105130.0,0.03434254]
[1749988995436,0.7362885,105140.0,105130.0,0.03434254]
[1749988995638,0.73628848,105140.0,105130.0,0.03434254]
[1749988996046,0.73405979,105140.0,105130.0,0.03434254]
[1749988996250,0.73628852,105140.0,105130.0,0.03434254]
[1749988996452,0.74297467,105140.0,105130.0,0.03434254]
[1749988996664,0.74297459,105140.0,105130.0,0.03434254]
[1749988996874,0.73628849,105140.0,105130.0,0.03434254]
[1749988997074,0.7429746,105140.0,105130.0,0.03434254]
[1749988997285,0.74297461,105140.0,105130.0,0.03434254]
[1749988997462,0.73628849,105140.0,105130.0,0.03434254]
[1749988997691,0.58825443,105140.0,105130.0,0.03434254]
[1749988997895,0.74293439,105140.0,105130.0,0.03434254]
[1749988998102,0.73624836,105140.0,105130.0,0.03434254]
[1749988998310,0.73401926,105140.0,105130.0,0.03434254]
[1749988998535,0.73624779,105140.0,105130.0,0.03434254]
[1749988998738,0.7340192,105140.0,105130.0,0.03434254]
[1749988998945,0.73624772,105140.0,105130.0,0.03434254]
[1749988999187,0.72733365,105140.0,105130.0,0.03434254]
[1749988999386,0.73624704,105140.0,105130.0,0.03434254]
[1749988999601,0.74293201,105140.0,105130.0,0.03434254]
[1749988999979,0.74293198,105140.0,105130.0,0.03434254]
[1749989000187,0.74293173,105140.0,105130.0,0.03434254]
[1749989000418,0.73624684,105140.0,105130.0,0.03434254]
[1749989000633,0.74293162,105140.0,105130.0,0.03434254]
[1749989000854,0.36650177,105140.0,105130.0,0.03434254]
[1749989001073,0.37318659,105140.0,105130.0,0.03434254]
[1749989001301,0.35758868,105140.0,105130.0,0.03434254]
[1749989001521,0.37318669,105140.0,105130.0,0.03434254]
[1749989001721,0.37318584,105140.0,105130.0,0.03434254]
[1749989001945,0.37318589,105140.0,105130.0,0.03434254]
[1749989002148,0.3642732,105140.0,105130.0,0.03434254]
[1749989002353,0.37318591,105140.0,105130.0,0.03434254]
[1749989002764,0.37318593,105140.0,105130.0,0.03434254]
[1749989002949,0.35758868,105140.0,105130.0,0.03434254]
[1749989003213,0.37318594,105140.0,105130.0,0.03434254]
[1749989003402,0.36427318,105140.0,105130.0,0.03434254]
[1749989003680,0.37318519,105140.0,105130.0,0.03434254]
[1749989003891,0.3642729,105140.0,105130.0,0.03434254]
[1749989004058,0.36650098,105140.0,105130.0,0.03434254]
[1749989004280,0.39417277,105140.0,105130.0,0.03434254]
[1749989004441,0.40085699,105140.0,105130.0,0.03434254]
[1749989004649,0.40085692,105140.0,105130.0,0.03434254]
[1749989005085,0.40085691,105140.0,105130.0,0.03434254]
[1749989005299,0.40085677,105140.0,105130.0,0.03434254]
[1749989005508,0.40085671,105140.0,105130.0,0.03434254]
[1749989005711,0.39417241,105140.0,105130.0,0.03434254]
[1749989005961,0.74085585,105140.0,105130.0,0.03434254]
[1749989006187,0.73417159,105140.0,105130.0,0.03434254]
[1749989006450,0.73194378,105140.0,105130.0,0.03434254]
[1749989006655,0.73417136,105140.0,105130.0,0.03434254]
[1749989006862,0.7408545,105140.0,105130.0,0.03434254]
[1749989007072,0.74085451,105140.0,105130.0,0.03434254]
[1749989007285,0.73417135,105140.0,105130.0,0.03434254]
[1749989007497,0.73417125,105140.0,105130.0,0.03434254]
[1749989007717,0.74085438,105140.0,105130.0,0.03434254]
[1749989007924,0.73417116,105140.0,105130.0,0.03434254]
[1749989008136,0.74085408,105140.0,105130.0,0.03434254]
[1749989008345,0.74085401,105140.0,105130.0,0.03434254]
[1749989008551,0.72526048,105140.0,105130.0,0.03434254]
[1749989008781,0.73194342,105140.0,105130.0,0.03434254]
[1749989009020,0.74085399,105140.0,105130.0,0.03434254]
[1749989009253,0.73417106,105140.0,105130.0,0.03434254]
[1749989009457,0.74085403,105140.0,105130.0,0.03434254]
[1749989009691,0.72526048,105140.0,105130.0,0.03434254]
[1749989010134,0.73417108,105140.0,105130.0,0.03434254]
[1749989010345,0.74085403,105140.0,105130.0,0.03434254]
[1749989010466,0.74085405,105140.0,105130.0,0.03434254]
[1749989010677,0.73417109,105140.0,105130.0,0.03434254]
[1749989010872,0.74085405,105140.0,105130.0,0.03434254]
[1749989011319,0.73417109,105140.0,105130.0,0.03434254]
[1749989011528,0.73417102,105140.0,105130.0,0.03434254]
[1749989011719,0.74085391,105140.0,105130.0,0.03434254]
[1749989012579,0.73194338,105140.0,105130.0,0.03434254]
[1749989012773,0.7408554,105140.0,105130.0,0.03434254]
[1749989013177,0.7408154,105140.0,105130.0,0.23409522]
[1749989013405,0.73413308,105140.0,105130.0,0.24360716]
[1749989013634,0.58617742,105140.0,105130.0,0.25311901]
[1749989013838,0.72522048,105140.0,105130.0,0.25311901]
[1749989014041,0.7408176,105140.0,105130.0,0.25311901]
[1749989014266,0.72522048,105140.0,105130.0,0.24360716]
[1749989014468,0.73413315,105140.0,105130.0,0.24360716]
[1749989014669,0.72522048,105140.0,105130.0,0.24360716]
[1749989014877,0.74081769,105140.0,105130.0,0.24360716]
[1749989015086,0.74081761,105140.0,105130.0,0.24360716]
[1749989015304,0.74081765,105140.0,105130.0,0.25311901]
[1749989015511,0.74081777,105140.0,105130.0,0.25311901]
[1749989015686,0.74081773,105140.0,105130.0,0.25311901]
[1749989016012,0.73413318,105140.0,105130.0,0.25311901]
[1749989016213,0.72522048,105140.0,105130.0,0.25311901]
[1749989016430,0.73412799,105140.0,105130.0,0.25311901]
[1749989016638,0.73412793,105140.0,105130.0,0.25311901]
[1749989016815,0.72522048,105140.0,105130.0,0.25311901]
[1749989017151,0.74080848,105140.0,105130.0,0.25311901]
[1749989017563,0.73412791,105140.0,105130.0,0.26263077]
[1749989017799,0.72522048,105140.0,105130.0,0.26263077]
[1749989018223,0.73412793,105140.0,105130.0,0.26263077]
[1749989018661,0.7341281,105140.0,105130.0,0.26263077]
[1749989018882,0.73412813,105140.0,105130.0,0.26263077]
[1749989019135,0.72522048,105140.0,105130.0,0.25311901]
[1749989019289,0.73412812,105140.0,105130.0,0.25311901]
[1749989019490,0.74080883,105140.0,105130.0,0.25311901]
[1749989019739,0.73412818,105140.0,105130.0,0.25311901]
[1749989019936,0.74080879,105140.0,105130.0,0.25311901]
[1749989020136,0.74080883,105140.0,105130.0,0.25311901]
[1749989020376,0.74080929,105140.0,105130.0,0.25311901]
[1749989020570,0.74080927,105140.0,105130.0,0.25311901]
[1749989020778,0.73190139,105140.0,105130.0,0.25311901]
[1749989020976,0.74080927,105140.0,105130.0,0.25311901]
[1749989021178,0.58009088,105140.0,105130.0,0.25311901]
[1749989021382,0.74363872,105140.0,105130.0,0.26263068]
[1749989021581,0.75031961,105140.0,105130.0,0.26263068]
[1749989021911,0.74363879,105140.0,105130.0,0.26263068]
[1749989022337,0.74363883,105140.0,105130.0,0.26263068]
[1749989022523,0.74363878,105140.0,105130.0,0.26263068]
[1749989022722,0.72522048,105140.0,105130.0,0.26263068]
[1749989023020,0.73412837,105140.0,105130.0,0.25311901]
[1749989023164,0.72522048,105140.0,105130.0,0.25311901]
[1749989023362,0.73412838,105140.0,105130.0,0.25311901]
[1749989023801,0.72522048,105140.0,105130.0,0.25311901]
[1749989023977,0.73412838,105140.0,105130.0,0.04385457]
[1749989024200,0.72522048,105140.0,105130.0,0.04385457]
[1749989024407,0.72522048,105140.0,105130.0,0.03434254]
[1749989024990,0.73412838,105140.0,105130.0,0.03434254]
[1749989025397,0.72522048,105140.0,105130.0,0.03434254]
[1749989025929,0.73412838,105140.0,105130.0,0.03434254]
[1749989026318,0.72522048,105140.0,105130.0,0.03434254]
[1749989026518,0.73412838,105140.0,105130.0,0.03434254]
[1749989026905,0.72522048,105140.0,105130.0,0.03434254]
[1749989027131,0.73412838,105140.0,105130.0,0.03434254]
[1749989027568,0.57948838,105140.0,105130.0,0.03434254]
[1749989027811,0.72518048,105140.0,105130.0,0.03434254]
[1749989027958,0.73186535,105140.0,105130.0,0.03434254]
[1749989028156,0.73409365,105140.0,105130.0,0.03434254]
[1749989028535,0.74077851,105140.0,105130.0,0.03434254]
[1749989028740,0.74077863,105140.0,105130.0,0.03434254]
[1749989029194,0.74077869,105140.0,105130.0,0.03434254]
[1749989029442,0.73186544,105140.0,105130.0,0.03434254]
[1749989029643,0.73409372,105140.0,105130.0,0.03434254]
[1749989029841,0.73409371,105140.0,105130.0,0.03434254]
[1749989030046,0.74077863,105140.0,105130.0,0.03434254]
[1749989030339,0.74077867,105140.0,105130.0,0.03434254]
[1749989030544,0.74077864,105140.0,105130.0,0.03434254]
[1749989030751,0.73186539,105140.0,105130.0,0.03434254]
[1749989031045,0.73186529,105140.0,105130.0,0.03434254]
[1749989031251,0.74192072,105140.0,105130.0,0.00114254]
[1749989031705,0.75083353,105140.0,105130.0,0.00114254]
[1749989031922,0.77371816,105140.0,105130.0,0.00114254]
[1749989032146,0.76480534,105140.0,105130.0,0.00114254]
[1749989032367,0.75812072,105140.0,105130.0,0.00114254]
[1749989032574,0.76480535,105140.0,105130.0,0.00114254]
[1749989032777,0.77371819,105140.0,105130.0,0.00114254]
[1749989033018,0.76480535,105140.0,105130.0,0.00114254]
[1749989033689,0.76703356,105140.0,105130.0,0.00114254]
[1749989033897,0.75083358,105140.0,105130.0,0.00114254]
[1749989034100,0.75751822,105140.0,105130.0,0.00114254]
[1749989034305,0.75083358,105140.0,105130.0,0.00114254]
[1749989034716,0.75751822,105140.0,105130.0,0.00114254]
[1749989034918,0.75751821,105140.0,105130.0,0.00114254]
[1749989035137,0.75083357,105140.0,105130.0,0.00114254]
[1749989035406,0.75751822,105140.0,105130.0,0.00114254]
[1749989035814,0.77411822,105140.0,105130.0,0.00114254]
[1749989036234,0.77411823,105140.0,105130.0,0.00114254]
[1749989036437,0.76743358,105140.0,105130.0,0.00114254]
[1749989036663,0.77411823,105140.0,105130.0,0.00114254]
[1749989036885,0.77411822,105140.0,105130.0,0.00114254]
[1749989037088,0.75751822,105140.0,105130.0,0.00114254]
[1749989037494,0.75751824,105140.0,105130.0,0.00114254]
[1749989038280,0.73186514,105140.0,105130.0,0.00114254]
[1749989038671,0.74077803,105140.0,105130.0,0.00114254]
[1749989038868,0.73186516,105140.0,105130.0,0.00114254]
[1749989039075,0.74077807,105140.0,105130.0,0.00114254]
[1749989039274,0.73408213,105140.0,105130.0,0.00114254]
[1749989039488,0.72518048,105140.0,105130.0,0.00114254]
[1749989039907,0.73408214,105140.0,105130.0,0.00114254]
[1749989040113,0.74075834,105140.0,105130.0,0.00114254]
[1749989040315,0.74075833,105140.0,105130.0,0.00114254]
[1749989040524,0.74075835,105140.0,105130.0,0.00114254]
[1749989040967,0.72518048,105140.0,105130.0,0.00114254]
[1749989041197,0.7340821,105140.0,105130.0,0.00114254]
[1749989041404,0.74075829,105140.0,105130.0,0.00114254]
[1749989041611,0.73408208,105140.0,105130.0,0.00114254]
[1749989041818,0.74075828,105140.0,105130.0,0.00114254]
[1749989042236,0.74075829,105140.0,105130.0,0.00114254]
[1749989042441,0.7407583,105140.0,105130.0,0.00114254]
[1749989042649,0.73185669,105140.0,105130.0,0.00114254]
[1749989042854,0.74075829,105140.0,105130.0,0.00114254]
[1749989043105,0.73408209,105140.0,105130.0,0.00114254]
[1749989043316,0.74075829,105140.0,105130.0,0.00114254]
[1749989043734,0.74075828,105140.0,105130.0,0.00114254]
[1749989043939,0.74075829,105140.0,105130.0,0.00114254]
[1749989044142,0.73408208,105140.0,105130.0,0.00114254]
[1749989044348,0.74075828,105140.0,105130.0,0.00114254]
[1749989044530,0.74075834,105140.0,105130.0,0.00114254]
[1749989044756,0.74075829,105140.0,105130.0,0.00114254]
[1749989044962,0.35372417,105140.0,105130.0,0.00114254]
[1749989045548,0.34482256,105140.0,105130.0,0.00114254]
[1749989045788,0.35372425,105140.0,105130.0,0.00114254]
[1749989046410,0.35373584,105140.0,105130.0,0.00114254]
[1749989046615,0.34482256,105140.0,105130.0,0.00114254]
[1749989047024,0.69373586,105140.0,105130.0,0.00114254]
[1749989047229,0.71702096,105140.0,105130.0,0.00114254]
[1749989047437,0.71702096,105140.0,105130.0,0.01724254]
[1749989047855,0.37702096,105140.0,105130.0,0.03444254]
[1749989048479,0.70810766,105140.0,105130.0,0.01724254]
[1749989048690,0.71702097,105140.0,105130.0,0.01724254]
[1749989048900,0.71702096,105140.0,105130.0,0.01724254]
[1749989049728,0.71702095,105140.0,105130.0,0.01724254]
[1749989049932,0.71702093,105140.0,105130.0,0.01724254]
[1749989050138,0.70810766,105140.0,105130.0,0.01724254]
[1749989050345,0.82931281,105140.0,105130.0,0.00114254]
[1749989050599,0.83629956,105140.0,105130.0,0.00114254]
[1749989051015,0.82039956,105140.0,105130.0,0.00114254]
[1749989052908,0.82039956,105140.0,105130.0,0.0189998]
[1749989053115,0.82039956,105140.0,105130.0,0.01899984]
[1749989053323,0.82039956,105140.0,105130.0,0.01899985]
[1749989053546,0.82039956,105140.0,105130.0,0.01899986]
[1749989053772,0.82039956,105140.0,105130.0,0.0189998]
[1749989053999,0.82039956,105140.0,105130.0,0.01899986]
[1749989054207,0.82039956,105140.0,105130.0,0.01899985]
[1749989054477,0.82039956,105140.0,105130.0,0.00114254]
[1749989055171,0.82039956,105140.0,105130.0,0.01899983]
[1749989055396,0.82039956,105140.0,105130.0,0.01899974]
[1749989055645,0.82039956,105140.0,105130.0,0.01899953]
[1749989056094,0.82039956,105140.0,105130.0,0.01899139]
[1749989056327,0.82039956,105140.0,105130.0,0.01899137]
[1749989056553,0.82039956,105140.0,105130.0,0.01899142]
[1749989056780,0.82039956,105140.0,105130.0,0.05239142]
[1749989056982,0.82708133,105140.0,105130.0,0.05239142]
[1749989057197,0.82708131,105140.0,105130.0,0.05239142]
[1749989057402,0.67248133,105140.0,105130.0,0.05239135]
[1749989057606,0.82704132,105140.0,105130.0,0.01814254]
[1749989057809,0.82035956,105140.0,105130.0,0.03599119]
[1749989058018,0.80430942,105140.0,105130.0,0.01814254]
[1749989058157,0.81099113,105140.0,105130.0,0.03599127]
[1749989058382,0.81099118,105140.0,105130.0,0.01814254]
[1749989058601,0.81099121,105140.0,105130.0,0.03599107]
[1749989058805,0.81099123,105140.0,105130.0,0.01814254]
[1749989059010,0.90714045,105140.0,105130.0,0.03599105]
[1749989059345,0.90714045,105140.0,105130.0,0.01814254]
[1749989059346,0.90714044,105140.0,105130.0,0.01814254]
[1749989059560,0.90714044,105140.0,105130.0,0.03599116]
[1749989059561,0.90045864,105140.0,105130.0,0.03599116]
[1749989059769,0.81099123,105140.0,105130.0,0.03484254]
[1749989059979,0.80430942,105140.0,105130.0,0.05269119]
[1749989060193,0.55350766,105140.0,105130.0,0.05269119]
[1749989060341,0.56018957,105140.0,105130.0,0.05269119]
[1749989060543,0.56018957,105140.0,105130.0,0.05269088]
[1749989060544,0.71474965,105140.0,105130.0,0.05269088]
[1749989060755,0.72365889,105140.0,105130.0,0.05269068]
[1749989060956,0.72365876,105140.0,105130.0,0.05269017]
[1749989061162,0.71697694,105140.0,105130.0,0.05269017]
[1749989061361,0.72365895,105140.0,105130.0,0.05269025]
[1749989061784,0.71474965,105140.0,105130.0,0.05269022]
[1749989061983,0.71697697,105140.0,105130.0,0.03484254]
[1749989062225,0.72365893,105140.0,105130.0,0.03484254]
[1749989062440,0.56909892,105140.0,105130.0,0.05269024]
[1749989062641,0.71697695,105140.0,105130.0,0.05269033]
[1749989062777,0.5690989,105140.0,105130.0,0.03484254]
[1749989062974,0.72365897,105140.0,105130.0,0.03484254]
[1749989063332,0.56909898,105140.0,105130.0,0.05269023]
[1749989063539,0.56970075,105140.0,105130.0,0.23459522]
[1749989063763,0.72648808,105140.0,105130.0,0.26195465]
[1749989063939,0.73317006,105140.0,105130.0,0.24410707]
[1749989064166,0.72648818,105140.0,105130.0,0.25361883]
[1749989064368,0.73317023,105140.0,105130.0,0.27146606]
[1749989064583,0.73317025,105140.0,105130.0,0.25361883]
[1749989064822,0.71757878,105140.0,105130.0,0.24410707]
[1749989065080,0.57861032,105140.0,105130.0,0.25361901]
[1749989065302,0.20577623,105140.0,105130.0,0.33582774]
[1749989065529,0.20637657,105140.0,105130.0,0.33582746]
[1749989065780,0.21588742,105140.0,105130.0,0.27264207]
[1749989066194,0.21588742,105140.0,105130.0,0.29048837]
[1749989066394,0.21588742,105140.0,105130.0,0.27264207]
[1749989066594,0.22539836,105140.0,105130.0,0.29048788]
[1749989066796,0.22539836,105140.0,105130.0,0.27264207]
[1749989067014,0.22539836,105140.0,105130.0,0.290488]
[1749989067452,0.22539836,105140.0,105130.0,0.27264207]
[1749989068229,0.22539917,105140.0,105130.0,0.27264207]
[1749989069327,0.39660057,105140.0,105130.0,0.26313068]
[1749989069588,0.39660057,105140.0,105130.0,0.27264226]
[1749989069794,0.25095477,105140.0,105130.0,0.27264226]
[1749989070002,0.39660057,105140.0,105130.0,0.27264226]
[1749989070844,0.40551478,105140.0,105130.0,0.27264226]
[1749989071253,0.4055148,105140.0,105130.0,0.27264171]
[1749989071462,0.40551479,105140.0,105130.0,0.27264171]
[1749989071671,0.39660057,105140.0,105130.0,0.27264171]
[1749989071873,0.40551481,105140.0,105130.0,0.27264171]
[1749989072050,0.39660057,105140.0,105130.0,0.27264171]
[1749989072283,0.40551483,105140.0,105130.0,0.27264171]
[1749989072728,0.40551478,105140.0,105130.0,0.27264171]
[1749989072946,0.40551479,105140.0,105130.0,0.27264171]
[1749989073173,0.39660057,105140.0,105130.0,0.27264171]
[1749989073458,0.40551483,105140.0,105130.0,0.27264171]
[1749989073842,0.39660057,105140.0,105130.0,0.26313023]
[1749989074073,0.40551485,105140.0,105130.0,0.26313023]
[1749989074279,0.39660057,105140.0,105130.0,0.26313023]
[1749989074492,0.40551486,105140.0,105130.0,0.26313023]
[1749989074718,0.39660057,105140.0,105130.0,0.26313023]
[1749989075139,0.40551485,105140.0,105130.0,0.24410698]
[1749989075348,0.39600399,105140.0,105130.0,0.23459522]
[1749989075578,0.38649306,105140.0,105130.0,0.03484254]
[1749989075794,0.38649302,105140.0,105130.0,0.03484254]
[1749989076039,0.37757878,105140.0,105130.0,0.03484254]
[1749989076255,0.38649301,105140.0,105130.0,0.03484254]
[1749989076467,0.386493,105140.0,105130.0,0.04435457]
[1749989076882,0.37757878,105140.0,105130.0,0.04435457]
[1749989077087,0.386493,105140.0,105130.0,0.04435457]
[1749989077325,0.37757878,105140.0,105130.0,0.04435457]
[1749989077530,0.386493,105140.0,105130.0,0.23459522]
[1749989077736,0.386493,105140.0,105130.0,0.25361901]
[1749989077945,0.37757878,105140.0,105130.0,0.25361901]
[1749989078352,0.38649294,105140.0,105130.0,0.25361901]
[1749989078557,0.38649299,105140.0,105130.0,0.25361901]
[1749989078980,0.38649299,105140.0,105130.0,0.24410716]
[1749989079181,0.37757878,105140.0,105130.0,0.24410716]
[1749989079383,0.38649328,105140.0,105130.0,0.24410716]
[1749989079585,0.37757878,105140.0,105130.0,0.24410716]
[1749989079791,0.38649328,105140.0,105130.0,0.23459522]
[1749989079993,0.37757878,105140.0,105130.0,0.23459522]
[1749989080815,0.37757878,105140.0,105130.0,0.24410716]
[1749989081452,0.37757878,105140.0,105130.0,0.25361901]
[1749989082073,0.37757878,105140.0,105130.0,0.26313068]
[1749989085953,0.38649348,105140.0,105130.0,0.25361901]
[1749989086351,0.37698236,105140.0,105130.0,0.25361901]
[1749989086573,0.37698236,105140.0,105130.0,0.24410716]
[1749989086725,0.37698238,105140.0,105130.0,0.24410716]
[1749989086931,0.36806766,105140.0,105130.0,0.24410716]
[1749989087166,0.37698237,105140.0,105130.0,0.24410716]
[1749989087388,0.36802766,105140.0,105130.0,0.24410716]
[1749989087588,0.37694237,105140.0,105130.0,0.24410716]
[1749989087966,0.43415405,105140.0,105130.0,0.03484254]
[1749989088199,0.43415387,105140.0,105130.0,0.01814254]
[1749989088414,0.36802766,105140.0,105130.0,0.01814254]
[1749989088659,0.38362826,105140.0,105130.0,0.03454254]
[1749989088862,0.37694229,105140.0,105130.0,0.03454254]
[1749989089012,0.38362826,105140.0,105130.0,0.03454254]
[1749989089418,0.36802766,105140.0,105130.0,0.03454254]
[1749989089623,0.37694235,105140.0,105130.0,0.03454254]
[1749989089823,0.37694232,105140.0,105130.0,0.03454254]
[1749989090027,0.37694231,105140.0,105130.0,0.03454254]
[1749989090230,0.37694241,105140.0,105130.0,0.03454254]
[1749989090455,0.37694236,105140.0,105130.0,0.03454254]
[1749989090650,0.37694231,105140.0,105130.0,0.03454254]
[1749989090857,0.36802766,105140.0,105130.0,0.03454254]
[1749989091072,0.37694239,105140.0,105130.0,0.03454254]
[1749989091498,0.37694242,105140.0,105130.0,0.03454254]
[1749989091708,0.37694235,105140.0,105130.0,0.03454254]
[1749989091936,0.37694232,105140.0,105130.0,0.03454254]
[1749989092392,0.36802766,105140.0,105130.0,0.03454254]
[1749989092598,0.37694231,105140.0,105130.0,0.03454254]
[1749989092805,0.37694232,105140.0,105130.0,0.03454254]
[1749989093012,0.36802766,105140.0,105130.0,0.03454254]
[1749989093215,0.37694231,105140.0,105130.0,0.03454254]
[1749989093419,0.37694219,105140.0,105130.0,0.03454254]
[1749989093622,0.3769421,105140.0,105130.0,0.03454254]
[1749989093812,0.36802766,105140.0,105130.0,0.04405457]
[1749989094040,0.37694214,105140.0,105130.0,0.04405457]
[1749989094662,0.36802766,105140.0,105130.0,0.04405457]
[1749989094864,0.37694217,105140.0,105130.0,0.04405457]
[1749989095188,0.36802766,105140.0,105130.0,0.04405457]
[1749989095399,0.36802766,105140.0,105130.0,0.24380716]
[1749989095593,0.3769422,105140.0,105130.0,0.24380716]
[1749989095794,0.37694221,105140.0,105130.0,0.24380716]
[1749989095993,0.37694224,105140.0,105130.0,0.25331901]
[1749989096262,0.37694225,105140.0,105130.0,0.25331901]
[1749989096799,0.37694227,105140.0,105130.0,0.25331901]
[1749989097000,0.3769424,105140.0,105130.0,0.25331901]
[1749989097194,0.37694232,105140.0,105130.0,0.25331901]
[1749989097403,0.36802766,105140.0,105130.0,0.25331901]
[1749989097810,0.37694231,105140.0,105130.0,0.25331901]
[1749989098001,0.37694226,105140.0,105130.0,0.25331901]
[1749989098214,0.3864534,105140.0,105130.0,0.26283077]
[1749989098421,0.38645344,105140.0,105130.0,0.27234244]
[1749989098548,0.38645346,105140.0,105130.0,0.27234244]
[1749989098747,0.38704963,105140.0,105130.0,0.27234244]
[1749989098955,0.39596428,105140.0,105130.0,0.27234244]
[1749989099158,0.39596427,105140.0,105130.0,0.27234244]
[1749989099363,0.39596425,105140.0,105130.0,0.27234244]
[1749989099850,0.38704963,105140.0,105130.0,0.27234244]
[1749989100035,0.39596423,105140.0,105130.0,0.27234244]
[1749989100213,0.38704963,105140.0,105130.0,0.27234244]
[1749989100435,0.39596253,105140.0,105130.0,0.27234244]
[1749989100594,0.39596258,105140.0,105130.0,0.27234199]
[1749989100803,0.38704963,105140.0,105130.0,0.27234199]
[1749989101567,0.39596258,105140.0,105130.0,0.27234199]
[1749989101720,0.39596257,105140.0,105130.0,0.27234199]
[1749989101914,0.05181747,105140.0,105130.0,0.27234107]
[1749989102113,0.20633747,105140.0,105130.0,0.27234107]
[1749989103352,0.05181747,105140.0,105130.0,0.27234107]
[1749989103554,0.20629747,105140.0,105130.0,0.27234107]
[1749989103972,0.2158085,105140.0,105130.0,0.27234107]
[1749989104952,0.0613285,105140.0,105130.0,0.27234107]
[1749989105154,0.4060316,105140.0,105130.0,0.26282968]
[1749989105573,0.41494466,105140.0,105130.0,0.26282968]
[1749989105754,0.41494467,105140.0,105130.0,0.26282968]
[1749989106347,0.41494464,105140.0,105130.0,0.26282968]
[1749989106875,0.20629792,105140.0,105130.0,0.27234107]
[1749989108548,0.39652048,105140.0,105130.0,0.24380662]
[1749989108874,0.40543373,105140.0,105130.0,0.24380662]
[1749989109367,0.39592287,105140.0,105130.0,0.24380662]
[1749989109571,0.39592286,105140.0,105130.0,0.24380662]
[1749989109778,0.38700963,105140.0,105130.0,0.24380662]
[1749989110189,0.39592468,105140.0,105130.0,0.24380662]
[1749989110394,0.39592467,105140.0,105130.0,0.24380662]
[1749989110600,0.39592469,105140.0,105130.0,0.24380662]
[1749989111018,0.38700963,105140.0,105130.0,0.24380662]
[1749989111225,0.38641375,105140.0,105130.0,0.23429522]
[1749989111466,0.37690266,105140.0,105130.0,0.24380716]
[1749989111696,0.37690266,105140.0,105130.0,0.26283077]
[1749989111914,0.37690274,105140.0,105130.0,0.26283077]
[1749989112121,0.36798766,105140.0,105130.0,0.26283077]
[1749989112327,0.37690265,105140.0,105130.0,0.25331901]
[1749989113027,0.36798766,105140.0,105130.0,0.26283077]
[1749989113518,0.37690267,105140.0,105130.0,0.26283077]
[1749989113753,0.3774986,105140.0,105130.0,0.27234199]
[1749989113971,0.40543532,105140.0,105130.0,0.27234153]
[1749989114172,0.41494644,105140.0,105130.0,0.27234153]
[1749989114373,0.40603142,105140.0,105130.0,0.27234153]
[1749989114577,0.41494647,105140.0,105130.0,0.27234153]
[1749989114785,0.21580886,105140.0,105130.0,0.27234107]
[1749989118415,0.21580886,105140.0,105130.0,0.26282968]
[1749989118569,0.40603142,105140.0,105130.0,0.26282968]
[1749989118974,0.41494598,105140.0,105130.0,0.26282968]
[1749989119207,0.41494593,105140.0,105130.0,0.26282968]
[1749989119607,0.41494595,105140.0,105130.0,0.26282968]
[1749989119729,0.40603142,105140.0,105130.0,0.26282968]
[1749989120179,0.41494596,105140.0,105130.0,0.26282968]
[1749989120801,0.26046593,105140.0,105130.0,0.26282968]
[1749989120950,0.40603142,105140.0,105130.0,0.26282968]
[1749989121153,0.41494593,105140.0,105130.0,0.26282968]
[1749989121392,0.41494583,105140.0,105130.0,0.26282968]
[1749989121637,0.41494587,105140.0,105130.0,0.26282968]
[1749989121800,0.41494588,105140.0,105130.0,0.26282968]
[1749989122024,0.40603142,105140.0,105130.0,0.26282968]
[1749989122166,0.41494587,105140.0,105130.0,0.26282968]
[1749989122591,0.4149459,105140.0,105130.0,0.26282968]
[1749989122794,0.40603142,105140.0,105130.0,0.26282968]
[1749989122996,0.41494593,105140.0,105130.0,0.26282968]
[1749989123226,0.4149459,105140.0,105130.0,0.26282968]
[1749989123433,0.41494585,105140.0,105130.0,0.26282968]
[1749989123626,0.40603142,105140.0,105130.0,0.26282968]
[1749989124280,0.41494593,105140.0,105130.0,0.26282968]
[1749989124896,0.41494595,105140.0,105130.0,0.26282968]
[1749989125952,0.41494593,105140.0,105130.0,0.26282968]
[1749989127043,0.40603142,105140.0,105130.0,0.26282968]
[1749989127450,0.41494595,105140.0,105130.0,0.26282968]
[1749989127658,0.40603142,105140.0,105130.0,0.26282968]
[1749989127861,0.41494594,105140.0,105130.0,0.26282968]
[1749989128065,0.414946,105140.0,105130.0,0.26282968]
[1749989128269,0.40603142,105140.0,105130.0,0.26282968]
[1749989128476,0.41494609,105140.0,105130.0,0.26282968]
[1749989128683,0.21521241,105140.0,105130.0,0.26282968]
[1749989128887,0.04230671,105140.0,105130.0,0.27234107]
[1749989129096,0.19678671,105140.0,105130.0,0.27234107]
[1749989130453,0.05181774,105140.0,105130.0,0.27234107]
[1749989130666,0.20625675,105140.0,105130.0,0.27234107]
[1749989131068,0.04230599,105140.0,105130.0,0.42150366]
[1749989131246,0.19674581,105140.0,105130.0,0.42150366]
[1749989131466,0.21576688,105140.0,105130.0,0.42150366]
[1749989131690,0.19674581,105140.0,105130.0,0.42150366]
[1749989132108,0.20625648,105140.0,105130.0,0.45007089]
[1749989132304,0.20625639,105140.0,105130.0,0.42150366]
[1749989132754,0.20625639,105140.0,105130.0,0.45007089]
[1749989133154,0.20625639,105140.0,105130.0,0.42150366]